bitfinex/quotes_BTCUSD_20230405
["timestamp","ask_amount","ask_price","bid_price","bid_amount"]
[1680712113087,0.94439298,27891.0,27890.0,0.005]
[1680712113302,0.97139298,27891.0,27890.0,0.005]
[1680712113718,1.08409098,27891.0,27890.0,0.005]
[1680712113942,1.08430098,27891.0,27890.0,0.005]
[1680712115953,1.119711,27891.0,27890.0,0.005]
[1680712116776,1.092711,27891.0,27890.0,0.005]
[1680712117148,1.119711,27891.0,27890.0,0.005]
[1680712117345,1.092501,27891.0,27890.0,0.005]
[1680712117552,1.119501,27891.0,27890.0,0.005]
[1680712117968,1.06391167,27891.0,27890.0,0.005]
[1680712119044,1.05874367,27891.0,27890.0,0.005]
[1680712119261,1.03174367,27891.0,27890.0,0.005]
[1680712119467,1.05874367,27891.0,27890.0,0.005]
[1680712119679,0.71779858,27891.0,27886.0,0.00018]
[1680712119893,0.36321056,27890.0,27884.0,0.0215]
[1680712120095,0.32923153,27888.0,27884.0,0.0215]
[1680712120304,0.35471056,27887.0,27884.0,0.19030644]
[1680712120500,0.35471056,27887.0,27884.0,0.19048644]
[1680712120932,0.35471056,27887.0,27886.0,0.003586]
[1680712121136,0.00021,27888.0,27887.0,0.010756]
[1680712121346,0.38920816,27890.0,27887.0,0.010756]
[1680712121551,0.74412872,27890.0,27887.0,0.15265281]
[1680712121757,0.74412872,27890.0,27887.0,0.010756]
[1680712122163,0.018,27888.0,27887.0,0.010756]
[1680712122382,0.74412872,27890.0,27887.0,0.010756]
[1680712122575,0.76212872,27890.0,27887.0,0.010756]
[1680712122781,0.71891872,27890.0,27888.0,0.2076435]
[1680712122985,0.00021,27891.0,27889.0,0.003585]
[1680712123252,0.70957405,27892.0,27889.0,0.003585]
[1680712123676,0.00021,27893.0,27889.0,0.16733976]
[1680712123886,0.33543133,27894.0,27889.0,0.16733976]
[1680712124096,0.33564133,27894.0,27891.0,0.010755]
[1680712124340,0.33543133,27894.0,27891.0,0.010755]
[1680712125168,0.34043133,27894.0,27891.0,0.010755]
[1680712125379,0.33452225,27893.0,27891.0,0.010755]
[1680712126213,0.33452225,27893.0,27891.0,0.34338996]
[1680712126417,0.33952225,27893.0,27891.0,0.34356996]
[1680712127442,0.33973225,27893.0,27891.0,0.30638996]
[1680712127649,0.33973225,27893.0,27891.0,0.30997496]
[1680712127819,0.33973225,27893.0,27891.0,0.31714496]
[1680712128380,0.34473225,27893.0,27891.0,0.31714496]
[1680712128614,0.33473225,27893.0,27891.0,0.31714496]
[1680712129014,0.33973225,27893.0,27891.0,0.31714496]
[1680712129287,0.33473225,27893.0,27891.0,0.31714496]
[1680712129501,0.33973225,27893.0,27891.0,0.31714496]
[1680712129731,0.33473225,27893.0,27891.0,0.31714496]
[1680712130143,0.33973225,27893.0,27891.0,0.010755]
[1680712130344,0.35471056,27896.0,27888.0,0.30088135]
[1680712130345,0.78717867,27892.0,27888.0,0.30088135]
[1680712130611,0.92404246,27892.0,27888.0,0.30464635]
[1680712130872,0.33941731,27891.0,27888.0,0.30464635]
[1680712131498,0.35471056,27890.0,27888.0,0.00018]
[1680712131708,0.35471056,27890.0,27886.0,0.003765]
[1680712131925,0.49157435,27890.0,27886.0,0.18052954]
[1680712132133,0.35471056,27890.0,27886.0,0.18034954]
[1680712132531,0.35671056,27890.0,27886.0,0.18034954]
[1680712132904,0.35471056,27890.0,27886.0,0.17676454]
[1680712133100,0.35571056,27890.0,27886.0,0.17676454]
[1680712133276,0.35571056,27890.0,27887.0,0.24680269]
[1680712133277,0.35471056,27890.0,27887.0,0.24680269]
[1680712133483,0.68440355,27890.0,27887.0,0.24680269]
[1680712134877,0.01121,27890.0,27887.0,0.17053868]
[1680712135079,0.011,27890.0,27887.0,0.02864187]
[1680712135287,0.011,27890.0,27887.0,0.003585]
[1680712135491,0.011,27890.0,27887.0,0.14548181]
[1680712135734,0.0012,27888.0,27887.0,0.40965156]
[1680712135955,0.0012,27888.0,27887.0,0.48916601]
[1680712136375,0.0012,27888.0,27887.0,0.42993368]
[1680712136584,0.0012,27888.0,27887.0,0.37869768]
[1680712136793,0.0012,27888.0,27887.0,0.43073768]
[1680712137218,0.0012,27888.0,27887.0,0.43173768]
[1680712137452,0.0012,27888.0,27887.0,0.37875768]
[1680712137657,0.0032,27888.0,27887.0,0.37957768]
[1680712137866,0.0032,27888.0,27887.0,0.37975768]
[1680712138727,0.0032,27888.0,27887.0,0.43193568]
[1680712140023,0.0032,27888.0,27887.0,0.37975768]
[1680712140235,0.002,27888.0,27887.0,0.37855768]
[1680712140424,0.002,27888.0,27887.0,0.37957768]
[1680712143982,0.002,27888.0,27887.0,0.46510731]
[1680712144609,0.002,27888.0,27887.0,0.51729031]
[1680712144816,0.002,27888.0,27887.0,0.37957768]
[1680712145029,0.00021,27892.0,27887.0,0.62946063]
[1680712145236,0.00021,27897.0,27890.0,0.08566543]
[1680712145447,0.33216912,27898.0,27891.0,0.56125868]
[1680712145652,0.33216912,27898.0,27893.0,0.025095]
[1680712145871,0.39310115,27896.0,27894.0,0.14189681]
[1680712146087,0.39310115,27896.0,27893.0,0.06580537]
[1680712146088,0.36250013,27895.0,27893.0,0.06580537]
[1680712146315,0.36250013,27895.0,27890.0,0.22850458]
[1680712146316,0.35045096,27893.0,27890.0,0.00018]
[1680712146523,0.35671056,27892.0,27887.0,0.01718]
[1680712146738,0.03569206,27891.0,27885.0,0.3064379]
[1680712146950,0.15,27889.0,27885.0,0.3064379]
[1680712147134,0.15021,27889.0,27884.0,0.0215]
[1680712147384,0.49157435,27888.0,27884.0,0.0215]
[1680712147603,0.1793,27886.0,27884.0,0.0215]
[1680712147815,0.35471056,27885.0,27884.0,0.0215]
[1680712148025,0.35492056,27885.0,27884.0,0.0215]
[1680712148695,0.40919262,27885.0,27884.0,0.0215]
[1680712148906,0.35492056,27885.0,27884.0,0.0215]
[1680712149111,0.72108373,27885.0,27884.0,0.0215]
[1680712149979,0.72108373,27885.0,27884.0,0.0235]
[1680712150279,0.74008373,27885.0,27884.0,0.0235]
[1680712151737,0.74546273,27885.0,27884.0,0.0235]
[1680712152330,0.47262483,27885.0,27884.0,0.0235]
[1680712152540,0.78112483,27885.0,27884.0,0.0235]
[1680712152957,1.23173554,27885.0,27884.0,0.0235]
[1680712153167,0.78112483,27885.0,27884.0,0.0235]
[1680712153403,0.76212483,27885.0,27884.0,0.0215]
[1680712153667,0.78912483,27885.0,27884.0,0.0215]
[1680712153894,0.77997731,27885.0,27884.0,0.0215]
[1680712154135,0.95697731,27885.0,27884.0,0.0215]
[1680712157909,1.20316048,27885.0,27884.0,0.0215]
[1680712158340,1.20877641,27885.0,27884.0,0.0215]
[1680712159211,1.09759866,27885.0,27884.0,0.0215]
[1680712160298,1.27690866,27885.0,27884.0,0.0215]
[1680712160715,1.09759866,27885.0,27884.0,0.0215]
[1680712161833,0.86974056,27885.0,27884.0,0.0215]
[1680712162050,1.27944202,27885.0,27884.0,0.0215]
[1680712162498,1.42292412,27885.0,27884.0,0.0215]
[1680712163557,1.24360412,27885.0,27884.0,0.0215]
[1680712163793,1.10012202,27885.0,27884.0,0.0215]
[1680712164209,1.09162202,27885.0,27884.0,0.0215]
[1680712164415,1.09162202,27885.0,27884.0,0.025086]
[1680712164624,0.38192056,27885.0,27884.0,0.0215]
[1680712165704,0.02721,27885.0,27884.0,0.19532832]
[1680712165938,0.027,27885.0,27884.0,0.19532832]
[1680712166156,0.027,27885.0,27884.0,0.10769751]
[1680712166836,0.00021,27893.0,27885.0,0.47009425]
[1680712167055,0.38341167,27897.0,27887.0,0.060957]
[1680712167056,0.42019117,27896.0,27887.0,0.060957]
[1680712167285,0.00021,27897.0,27888.0,0.55529007]
[1680712167507,0.39858878,27897.0,27890.0,0.025096]
[1680712167755,0.39858878,27897.0,27891.0,0.23168721]
[1680712167966,0.00021,27897.0,27892.0,0.025095]
[1680712168182,0.001,27897.0,27893.0,0.14189681]
[1680712168403,0.00021,27898.0,27894.0,0.02745218]
[1680712168625,0.001,27897.0,27895.0,0.051316]
[1680712168853,0.001,27897.0,27896.0,0.010753]
[1680712169126,0.01793,27906.0,27896.0,0.010753]
[1680712169127,0.00021,27899.0,27896.0,0.06554]
[1680712169348,0.37017125,27902.0,27897.0,0.0598799]
[1680712169557,0.37038125,27902.0,27898.0,0.15264881]
[1680712169772,0.37038125,27902.0,27899.0,0.25687275]
[1680712169987,0.37038125,27902.0,27900.0,0.003584]
[1680712170441,0.00121,27902.0,27900.0,0.14548081]
[1680712170659,0.00021,27903.0,27900.0,0.04666144]
[1680712170870,0.001,27902.0,27900.0,0.04666144]
[1680712171085,0.00021,27902.0,27900.0,0.04666144]
[1680712171298,0.35471056,27901.0,27900.0,0.021584]
[1680712171509,0.75421568,27901.0,27900.0,0.021584]
[1680712172569,0.00021,27901.0,27900.0,0.021584]
[1680712172786,0.40628316,27903.0,27900.0,0.16828317]
[1680712172997,0.001,27901.0,27900.0,0.21627934]
[1680712173212,0.00121,27901.0,27900.0,0.21627934]
[1680712173426,0.00106,27901.0,27900.0,0.01955157]
[1680712173635,0.35249644,27902.0,27900.0,0.00501557]
[1680712173853,0.35249644,27902.0,27900.0,0.02301557]
[1680712174072,0.35249644,27902.0,27900.0,0.003584]
[1680712174321,0.001,27901.0,27900.0,0.021584]
[1680712174748,0.35249644,27902.0,27900.0,0.003584]
[1680712175649,0.35349644,27902.0,27900.0,0.021584]
[1680712176279,0.35370644,27902.0,27900.0,0.021584]
[1680712177776,0.35349644,27902.0,27900.0,0.03448763]
[1680712178001,0.00121,27902.0,27901.0,0.11903009]
[1680712178224,0.42609934,27907.0,27901.0,0.58572354]
[1680712178450,0.42630934,27907.0,27902.0,0.21043458]
[1680712178674,0.42630934,27907.0,27903.0,0.37979556]
[1680712178675,0.43632392,27906.0,27903.0,0.37979556]
[1680712178890,0.43653392,27906.0,27904.0,0.05370441]
[1680712179098,0.43653392,27906.0,27905.0,0.01075]
[1680712179564,0.00021,27906.0,27905.0,0.01075]
[1680712179804,0.02365,27908.0,27905.0,0.054118]
[1680712179805,0.41889138,27908.0,27905.0,0.054118]
[1680712180054,0.02386,27908.0,27906.0,0.35471056]
[1680712180301,0.02365,27908.0,27907.0,0.025082]
[1680712180582,0.02365,27908.0,27907.0,0.37979256]
[1680712180807,0.02365,27908.0,27907.0,0.62057729]
[1680712181490,0.02365,27908.0,27907.0,0.47400982]
[1680712181700,0.02365,27908.0,27907.0,0.67279098]
[1680712181984,0.02365,27908.0,27907.0,0.63073568]
[1680712182209,0.02365,27908.0,27907.0,0.65873568]
[1680712182427,0.02365,27908.0,27907.0,0.63073568]
[1680712182849,0.02365,27908.0,27907.0,0.65873568]
[1680712183060,0.02365,27908.0,27907.0,0.63073568]
[1680712183269,0.02365,27908.0,27907.0,0.65873568]
[1680712183900,0.02365,27908.0,27907.0,0.50200982]
[1680712184110,0.02365,27908.0,27907.0,0.65891059]
[1680712184315,0.02365,27908.0,27907.0,0.50200982]
[1680712184538,0.02365,27908.0,27907.0,0.68422165]
[1680712188326,0.02365,27908.0,27907.0,0.50200982]
[1680712188781,0.02365,27908.0,27907.0,0.70379101]
[1680712189102,0.02365,27908.0,27907.0,0.70245467]
[1680712192717,0.02365,27908.0,27907.0,0.64861667]
[1680712193161,0.02365,27908.0,27907.0,0.70176967]
[1680712193406,0.02365,27908.0,27907.0,0.50132482]
[1680712193598,0.02365,27908.0,27907.0,0.53715782]
[1680712193999,0.02365,27908.0,27907.0,0.83715782]
[1680712194871,0.02365,27908.0,27907.0,0.80927782]
[1680712195073,0.02365,27908.0,27907.0,0.83727782]
[1680712195278,0.02365,27908.0,27907.0,0.98483869]
[1680712195481,0.02365,27908.0,27907.0,0.98489869]
[1680712195700,0.02365,27908.0,27907.0,1.01935173]
[1680712197216,0.02365,27908.0,27907.0,1.00942924]
[1680712197639,0.02365,27908.0,27907.0,0.83733782]
[1680712197856,0.02365,27908.0,27907.0,0.83727782]
[1680712198795,0.02365,27908.0,27907.0,0.83733782]
[1680712199351,0.02365,27908.0,27907.0,1.01364537]
[1680712199996,0.02365,27908.0,27907.0,0.83733782]
[1680712200607,0.02365,27908.0,27907.0,1.02922721]
[1680712201214,0.02365,27908.0,27907.0,0.98884795]
[1680712201395,0.02365,27908.0,27907.0,0.353262]
[1680712201595,0.02365,27908.0,27907.0,0.038929]
[1680712201825,0.02365,27908.0,27907.0,0.038749]
[1680712202026,0.02357858,27908.0,27907.0,0.038749]
[1680712202433,0.02357858,27908.0,27907.0,0.05633414]
[1680712203101,0.02357858,27908.0,27907.0,0.22084074]
[1680712203395,0.02357858,27908.0,27907.0,0.19284074]
[1680712203600,0.02357858,27908.0,27907.0,0.22084074]
[1680712205219,0.02357858,27908.0,27907.0,0.2032556]
[1680712210899,0.43392189,27908.0,27907.0,0.028]
[1680712211101,0.43392189,27908.0,27907.0,0.031583]
[1680712211516,0.43413189,27908.0,27907.0,0.031583]
[1680712211931,0.43413189,27908.0,27907.0,0.003583]
[1680712212577,0.43413189,27908.0,27907.0,0.031583]
[1680712212784,0.43413189,27908.0,27907.0,0.003583]
[1680712212995,0.43392189,27908.0,27907.0,0.031583]
[1680712213469,0.02357858,27908.0,27907.0,0.1882045]
[1680712213672,0.02357858,27908.0,27907.0,0.09981869]
[1680712213882,0.02357858,27908.0,27907.0,0.19150684]
[1680712214758,0.02357858,27908.0,27907.0,0.24576984]
[1680712215813,0.02357858,27908.0,27907.0,0.19150684]
[1680712216035,0.02357858,27908.0,27907.0,0.17678215]
[1680712216464,0.02357858,27908.0,27907.0,0.44070656]
[1680712216677,0.02357858,27908.0,27907.0,0.89526982]
[1680712217303,0.02357858,27908.0,27907.0,0.86726982]
[1680712217520,0.02357858,27908.0,27907.0,0.89526982]
[1680712217734,0.02357858,27908.0,27907.0,0.99096049]
[1680712217960,0.02357858,27908.0,27907.0,1.01914049]
[1680712219275,0.02357858,27908.0,27907.0,1.04337931]
[1680712220892,0.02357858,27908.0,27907.0,0.98896631]
[1680712221340,0.02357858,27908.0,27907.0,1.04254131]
[1680712222188,0.02357858,27908.0,27907.0,1.04281131]
[1680712222823,0.35899982,27908.0,27907.0,0.47114687]
[1680712223031,0.35899982,27908.0,27907.0,0.085608]
[1680712223454,0.35899982,27908.0,27907.0,0.25693886]
[1680712223677,0.35920982,27908.0,27907.0,0.2034973]
[1680712223901,0.35920982,27908.0,27907.0,0.24404349]
[1680712224327,0.35920982,27908.0,27907.0,0.11530841]
[1680712224542,0.35920982,27908.0,27907.0,0.24403704]
[1680712224988,0.35920982,27908.0,27907.0,0.07834541]
[1680712225209,0.35920982,27908.0,27907.0,0.11696541]
[1680712227105,0.35920982,27908.0,27907.0,0.07834541]
[1680712227320,0.53688093,27908.0,27907.0,0.08585845]
[1680712227574,0.40001714,27908.0,27905.0,0.08585845]
[1680712227809,0.37618056,27907.0,27905.0,0.08585845]
[1680712228013,0.37618056,27907.0,27904.0,0.21822871]
[1680712228014,0.021375,27906.0,27904.0,0.21822871]
[1680712228221,0.00021,27906.0,27904.0,0.21822871]
[1680712228439,0.00021,27906.0,27904.0,0.08944145]
[1680712228665,0.35471056,27905.0,27904.0,0.08944145]
[1680712228878,0.35492056,27905.0,27904.0,0.08585845]
[1680712229091,0.37784856,27905.0,27904.0,0.08585845]
[1680712229304,0.35492056,27905.0,27904.0,0.08585845]
[1680712229501,0.35492056,27905.0,27904.0,0.009]
[1680712229747,0.35492056,27905.0,27904.0,0.08944145]
[1680712229955,0.00221,27905.0,27904.0,0.09844145]
[1680712230197,0.34635769,27905.0,27904.0,0.08944145]
[1680712230409,0.34785169,27905.0,27904.0,0.09844145]
[1680712230837,0.34785169,27905.0,27904.0,0.08585845]
[1680712230838,0.32407869,27905.0,27904.0,0.08585845]
[1680712231903,0.32607869,27905.0,27904.0,0.09485845]
[1680712232114,0.32407869,27905.0,27904.0,0.08585845]
[1680712232541,0.32407869,27905.0,27904.0,0.009]
[1680712232542,0.32607869,27905.0,27904.0,0.009]
[1680712232773,0.32407869,27905.0,27903.0,0.08585845]
[1680712232960,0.32507869,27905.0,27904.0,0.009]
[1680712233156,0.32407869,27905.0,27903.0,0.08585845]
[1680712233400,0.32407869,27905.0,27904.0,0.009]
[1680712233401,0.32507869,27905.0,27904.0,0.009]
[1680712233609,0.34700569,27905.0,27904.0,0.009]
[1680712234262,0.32507869,27905.0,27904.0,0.009]
[1680712234563,0.67978925,27905.0,27904.0,0.009]
[1680712234772,0.70063125,27905.0,27904.0,0.009]
[1680712237272,0.37676256,27905.0,27904.0,0.009]
[1680712237481,0.72886342,27905.0,27904.0,0.009]
[1680712238114,0.72886342,27905.0,27904.0,0.012583]
[1680712238946,0.37415286,27905.0,27904.0,0.012583]
[1680712239365,0.37327986,27905.0,27904.0,0.012583]
[1680712239769,0.37327986,27905.0,27904.0,0.009]
[1680712241032,0.72799042,27905.0,27904.0,0.009]
[1680712241653,0.37327986,27905.0,27904.0,0.009]
[1680712242696,0.35331086,27905.0,27904.0,0.009]
[1680712243778,0.37568786,27905.0,27904.0,0.009]
[1680712245955,0.35331086,27905.0,27904.0,0.009]
[1680712246165,0.37541586,27905.0,27904.0,0.009]
[1680712246607,0.00121,27905.0,27904.0,0.009]
[1680712246838,0.001,27905.0,27904.0,0.17588671]
[1680712247055,0.00121,27905.0,27904.0,0.17588671]
[1680712247854,0.00121,27905.0,27904.0,0.21487571]
[1680712248048,0.001,27905.0,27904.0,0.38866505]
[1680712248479,0.001,27905.0,27904.0,0.34967605]
[1680712248882,0.001,27905.0,27904.0,0.45662705]
[1680712249259,0.00093081,27905.0,27904.0,0.45662705]
[1680712250700,0.40080486,27908.0,27904.0,0.44762705]
[1680712250882,0.002,27905.0,27904.0,0.42867605]
[1680712251258,0.40080486,27908.0,27904.0,0.41167605]
[1680712252420,0.002,27905.0,27904.0,0.42867605]
[1680712252588,0.45121353,27907.0,27904.0,0.41167605]
[1680712252799,0.37680991,27906.0,27904.0,0.22027]
[1680712253216,0.42092582,27905.0,27904.0,0.199687]
[1680712253430,0.42092582,27905.0,27904.0,0.22027]
[1680712253431,0.42292582,27905.0,27904.0,0.22027]
[1680712253633,0.42092582,27905.0,27904.0,0.20339]
[1680712253843,0.42092582,27905.0,27904.0,0.22027]
[1680712254060,0.42092582,27905.0,27904.0,0.22039]
[1680712254714,0.77563638,27905.0,27904.0,0.22039]
[1680712254926,0.77563638,27905.0,27904.0,0.20339]
[1680712255128,0.77763638,27905.0,27904.0,0.22027]
[1680712255330,0.77763638,27905.0,27904.0,0.22039]
[1680712257358,0.77763638,27905.0,27904.0,0.22045]
[1680712257560,0.0243,27905.0,27904.0,0.09191119]
[1680712257761,0.002,27905.0,27904.0,0.05054031]
[1680712258706,0.002,27905.0,27904.0,0.08665331]
[1680712258937,0.002,27905.0,27904.0,0.05054031]
[1680712259550,0.002,27905.0,27904.0,0.15969183]
[1680712259864,0.002,27905.0,27904.0,0.21429378]
[1680712261365,0.002,27905.0,27904.0,0.25080678]
[1680712261565,0.002,27905.0,27904.0,0.21429378]
[1680712261997,0.002,27905.0,27904.0,0.15969183]
[1680712262404,0.002,27905.0,27904.0,0.19570483]
[1680712262606,0.002,27905.0,27904.0,0.15969183]
[1680712262812,0.002,27905.0,27904.0,0.19671183]
[1680712263848,0.002,27905.0,27904.0,0.15969183]
[1680712264730,0.002,27905.0,27904.0,0.05054031]
[1680712265364,0.023185,27905.0,27904.0,0.05054031]
[1680712265561,0.002,27905.0,27904.0,0.05054031]
[1680712266035,0.34326849,27905.0,27904.0,0.05054031]
[1680712266253,0.023901,27905.0,27904.0,0.05054031]
[1680712266470,0.35671056,27905.0,27904.0,0.017]
[1680712266687,0.39705504,27905.0,27904.0,0.017]
[1680712266872,0.39699504,27905.0,27904.0,0.017]
[1680712267106,0.39705504,27905.0,27904.0,0.017]
[1680712267318,0.44976054,27905.0,27900.0,0.003584]
[1680712267525,0.37617056,27904.0,27899.0,0.003764]
[1680712267739,0.15,27902.0,27899.0,0.003764]
[1680712267957,0.022501,27901.0,27899.0,0.003764]
[1680712268180,0.022501,27901.0,27899.0,0.12121392]
[1680712268401,0.022501,27901.0,27900.0,0.02823742]
[1680712268584,0.022501,27901.0,27900.0,0.03182142]
[1680712269034,0.172501,27901.0,27900.0,0.003584]
[1680712269426,0.022501,27901.0,27900.0,0.003584]
[1680712269653,0.15,27900.0,27899.0,0.00018]
[1680712269898,0.022242,27900.0,27899.0,0.00818]
[1680712270133,0.022242,27900.0,27899.0,0.00018]
[1680712270825,0.001,27900.0,27899.0,0.00818]
[1680712271756,0.41002323,27900.0,27899.0,0.00818]
[1680712272249,0.41002323,27900.0,27899.0,0.008]
[1680712272525,0.41002323,27900.0,27895.0,0.0858123]
[1680712272526,0.52731545,27900.0,27895.0,0.0858123]
[1680712272732,0.52731545,27900.0,27891.0,0.0858123]
[1680712272733,0.35471056,27896.0,27891.0,0.0858123]
[1680712272949,0.35471056,27894.0,27889.0,0.0858123]
[1680712273176,0.17058589,27893.0,27890.0,0.42896326]
[1680712273388,0.021074,27892.0,27890.0,0.42896326]
[1680712273612,0.026661,27892.0,27890.0,0.42896326]
[1680712273822,0.005587,27892.0,27891.0,0.001]
[1680712274011,0.005587,27892.0,27889.0,0.40240762]
[1680712274012,0.38278956,27892.0,27889.0,0.40240762]
[1680712274260,0.37733956,27891.0,27890.0,0.001]
[1680712274476,0.37733956,27891.0,27888.0,0.35522925]
[1680712274477,0.83078612,27891.0,27888.0,0.35522925]
[1680712274694,0.15,27889.0,27888.0,0.35522925]
[1680712274909,0.021728,27889.0,27888.0,0.35522925]
[1680712275131,0.35471056,27889.0,27888.0,0.35522925]
[1680712275341,0.37659156,27889.0,27888.0,0.35522925]
[1680712276007,0.38259156,27889.0,27888.0,0.35622925]
[1680712276882,0.38259156,27889.0,27888.0,0.001]
[1680712277103,0.38238156,27889.0,27888.0,0.001]
[1680712277330,0.38259156,27889.0,27888.0,0.001]
[1680712277760,1.16662734,27889.0,27888.0,0.001]
[1680712278856,1.01662734,27889.0,27888.0,0.001]
[1680712279458,1.13328007,27889.0,27888.0,0.001]
[1680712280125,1.43865807,27889.0,27888.0,0.001]
[1680712280556,1.43328007,27889.0,27888.0,0.001]
[1680712280765,1.43865807,27889.0,27888.0,0.001]
[1680712283581,1.14241229,27889.0,27888.0,0.001]
[1680712283792,0.15,27888.0,27887.0,0.0215]
[1680712284004,0.96849869,27888.0,27887.0,0.0215]
[1680712284644,0.98635117,27888.0,27887.0,0.0215]
[1680712285708,1.01335117,27888.0,27887.0,0.0215]
[1680712285923,0.98635117,27888.0,27887.0,0.0215]
[1680712286134,1.01335117,27888.0,27887.0,0.0215]
[1680712286310,0.98635117,27888.0,27887.0,0.0215]
[1680712286562,1.01335117,27888.0,27887.0,0.0215]
[1680712286774,1.38026741,27888.0,27887.0,0.0215]
[1680712286993,1.0841898,27888.0,27887.0,0.0215]
[1680712287201,1.0843998,27888.0,27887.0,0.022]
[1680712287865,1.0705218,27888.0,27887.0,0.022]
[1680712288086,1.0703118,27888.0,27887.0,0.022]
[1680712288847,1.17736398,27888.0,27887.0,0.022]
[1680712289069,1.15036398,27888.0,27887.0,0.022]
[1680712289292,1.17036398,27888.0,27887.0,0.023]
[1680712289519,1.17574198,27888.0,27887.0,0.023]
[1680712289735,0.021685,27888.0,27887.0,0.16748181]
[1680712289960,0.026,27888.0,27887.0,0.16848181]
[1680712290391,0.026,27888.0,27887.0,0.026585]
[1680712290601,0.026,27888.0,27887.0,0.0335631]
[1680712290855,0.34800341,27894.0,27887.0,0.0325631]
[1680712291076,0.021826,27893.0,27888.0,0.14189681]
[1680712291312,0.35471056,27892.0,27889.0,0.010756]
[1680712291500,0.35471056,27892.0,27889.0,0.010936]
[1680712291501,0.020724,27891.0,27889.0,0.010936]
[1680712292396,0.020724,27891.0,27889.0,0.016936]
[1680712292607,0.020724,27891.0,27889.0,0.39143656]
[1680712292818,0.021724,27891.0,27889.0,0.39743656]
[1680712293034,0.021724,27891.0,27890.0,0.178569]
[1680712293247,0.020724,27891.0,27890.0,0.00018]
[1680712293468,0.020724,27891.0,27888.0,0.33302668]
[1680712293683,0.35471056,27890.0,27888.0,0.32962168]
[1680712293897,0.35471056,27890.0,27889.0,0.006]
[1680712294115,0.37658156,27890.0,27889.0,0.00618]
[1680712294295,0.37658156,27890.0,27889.0,0.18518]
[1680712294535,0.021871,27890.0,27889.0,0.18518]
[1680712294771,0.001,27891.0,27890.0,0.29409396]
[1680712294995,0.34988443,27893.0,27890.0,0.29767896]
[1680712295219,0.37612356,27892.0,27890.0,0.29767896]
[1680712295435,0.021865,27891.0,27890.0,0.29785896]
[1680712295652,0.02203,27894.0,27890.0,0.29785896]
[1680712295869,0.02203,27894.0,27890.0,0.17616481]
[1680712296164,0.00021,27896.0,27890.0,0.17598481]
[1680712296165,0.023368,27896.0,27890.0,0.17598481]
[1680712296389,0.023368,27896.0,27891.0,0.14189681]
[1680712296604,0.022199,27898.0,27892.0,0.025095]
[1680712296836,0.022199,27898.0,27893.0,0.49660737]
[1680712297046,0.00021,27902.0,27894.0,0.010753]
[1680712297256,0.40910598,27903.0,27895.0,0.49660737]
[1680712297466,0.00021,27905.0,27897.0,0.025091]
[1680712297724,0.35471056,27904.0,27898.0,0.14189681]
[1680712297951,1.31081499,27903.0,27899.0,0.010752]
[1680712298162,0.021822,27902.0,27899.0,0.15264881]
[1680712298393,0.003,27903.0,27899.0,0.010752]
[1680712298620,0.69403853,27904.0,27899.0,0.010752]
[1680712298833,1.3116336,27903.0,27899.0,0.15264881]
[1680712299060,0.021696,27902.0,27899.0,0.010752]
[1680712299281,0.022696,27902.0,27899.0,0.006]
[1680712299502,0.170388,27903.0,27899.0,0.003584]
[1680712299732,1.31206414,27902.0,27899.0,0.003584]
[1680712299947,0.021835,27901.0,27899.0,0.003584]
[1680712300164,0.43564986,27902.0,27899.0,0.003584]
[1680712300392,0.022523,27901.0,27899.0,0.003584]
[1680712301031,0.023523,27901.0,27899.0,0.30657593]
[1680712301238,0.001,27901.0,27899.0,0.30675593]
[1680712301868,0.022681,27901.0,27899.0,0.30675593]
[1680712302076,0.001,27901.0,27899.0,0.30675593]
[1680712302283,0.49162145,27901.0,27899.0,0.30675593]
[1680712302464,0.023342,27900.0,27899.0,0.009764]
[1680712302716,0.001,27901.0,27900.0,0.02287719]
[1680712302924,0.001,27901.0,27900.0,0.03362919]
[1680712303132,0.36156061,27904.0,27900.0,0.03362919]
[1680712303336,0.023108,27903.0,27900.0,0.175526]
[1680712303526,0.023108,27903.0,27900.0,0.03362919]
[1680712304203,0.001,27901.0,27900.0,0.03962919]
[1680712304415,0.023108,27903.0,27901.0,6.661e-05]
[1680712304633,0.001,27903.0,27902.0,0.37979556]
[1680712304848,2.32978635,27908.0,27902.0,0.37979556]
[1680712305065,0.021882,27907.0,27903.0,0.14189681]
[1680712305274,0.35458635,27908.0,27904.0,0.44545124]
[1680712305486,0.35458635,27908.0,27904.0,0.58734805]
[1680712306167,0.35458635,27908.0,27904.0,0.44545124]
[1680712306587,0.02378858,27908.0,27904.0,0.44545124]
[1680712306792,0.39183923,27908.0,27904.0,0.44545124]
[1680712307000,0.39204923,27908.0,27904.0,0.44545124]
[1680712307214,0.39404923,27908.0,27904.0,0.46445124]
[1680712307435,0.42901624,27908.0,27904.0,0.52881892]
[1680712307650,0.02557858,27908.0,27904.0,1.04460629]
[1680712307861,0.02357858,27908.0,27905.0,0.1138039]
[1680712308105,0.02357858,27908.0,27906.0,0.11048234]
[1680712308321,0.02357858,27908.0,27906.0,0.010749]
[1680712308531,0.02378858,27908.0,27905.0,0.26183985]
[1680712308766,0.02378858,27908.0,27906.0,0.010749]
[1680712308979,0.02578858,27908.0,27906.0,0.06987887]
[1680712309181,0.02378858,27908.0,27906.0,0.06987887]
[1680712309407,0.02578858,27908.0,27906.0,0.08887887]
[1680712310270,0.44549915,27908.0,27907.0,0.03507187]
[1680712310478,0.44549915,27908.0,27907.0,0.03865487]
[1680712310687,0.44549915,27908.0,27907.0,0.003583]
[1680712311581,0.02378858,27908.0,27907.0,0.003583]
[1680712311803,0.02557858,27908.0,27907.0,0.28811443]
[1680712312041,0.02578858,27908.0,27907.0,0.28811443]
[1680712313084,0.02578858,27908.0,27907.0,0.32357346]
[1680712313517,0.02557858,27908.0,27907.0,0.32357346]
[1680712313948,0.02557858,27908.0,27907.0,0.32351346]
[1680712314390,0.02557858,27908.0,27907.0,0.022523]
[1680712314603,0.40930099,27908.0,27907.0,0.022523]
[1680712314811,0.38783899,27908.0,27907.0,0.022523]
[1680712315020,0.41011399,27908.0,27907.0,0.022523]
[1680712315636,0.37511399,27908.0,27907.0,0.022523]
[1680712316482,0.00021,27909.0,27907.0,0.022523]
[1680712316666,0.34671001,27910.0,27908.0,0.03467177]